[Event "European Rapid Championship 2021"]
[Site "Katowice"]
[Date "2021.12.19"]
[Round "10.29"]
[White "Rozman, Monika"]
[Black "Budrewicz, Krzysztof"]
[Result "1-0"]
[ECO "B90"]
[WhiteElo "1998"]
[BlackElo "2281"]
[Annotator "NA"]
[PlyCount "51"]
[EventDate "2021.12.18"]
[EventType "swiss"]
[EventCountry "POL"]
[SourceTitle "playchess.com"]
[Source "ChessBase"]
[SourceQuality "1"]
[TimeControl "900+10"]

1. e4 {[%emt 0:00:01]} c5 {[%emt 0:00:06]} 2. Nf3 {[%emt 0:00:01]} a6 {[%emt 0:
00:05]} 3. Nc3 {[%emt 0:00:08]} d6 {[%emt 0:00:13]} 4. d4 {[%emt 0:00:02]} cxd4
{[%emt 0:00:06]} 5. Nxd4 {[%emt 0:00:01]} Nf6 {[%emt 0:00:05]} 6. Be3 {[%emt 0:
00:04]} e6 {[%emt 0:00:30]} 7. f3 {[%emt 0:00:02]} Nbd7 {[%emt 0:00:08]} 8. g4
{[%emt 0:00:04]} Be7 {[%emt 0:00:13]} 9. Qd2 {[%emt 0:00:07]} h6 {[%emt 0:00:
12]} 10. O-O-O {[%emt 0:00:16]} Qc7 {[%emt 0:00:14]} 11. h4 {[%emt 0:00:06]}
Ne5 {[%emt 0:00:08]} 12. Bh3 {[%emt 0:00:40]} Nc4 {[%emt 0:00:14]} 13. Qf2 {
[%emt 0:00:11]} Nxe3 {[%emt 0:00:09]} 14. Qxe3 {[%emt 0:00:01]} Nd7 {[%emt 0:
02:05]} 15. g5 {[%emt 0:00:26]} Ne5 {[%emt 0:00:27]} 16. f4 {[%emt 0:00:37]}
Nc4 {[%emt 0:02:44]} 17. Qg3 {[%emt 0:00:02]} hxg5 {[%emt 0:01:16]} 18. hxg5 {
[%emt 0:00:11]} b5 {[%emt 0:03:12]} 19. g6 {[%emt 0:00:10]} Bh4 {[%emt 0:00:10]
} 20. gxf7+ {[%emt 0:00:36]} Qxf7 {[%emt 0:00:10]} 21. Bxe6 {[%emt 0:01:13]}
Bxe6 {[%emt 0:01:17]} 22. Rxh4 {[%emt 0:00:11]} Rg8 {[%emt 0:01:23]} 23. f5 {
[%emt 0:01:15]} Bd7 {[%emt 0:00:06]} 24. Nd5 {[%emt 0:00:09]} O-O-O {[%emt 0:
00:09]} 25. b3 {[%emt 0:00:15]} Ne5 {[%emt 0:00:01]} 26. Qc3+ {[%emt 0:00:28]}
1-0

[Event "European Rapid Championship 2021"]
[Site "Katowice"]
[Date "2021.12.19"]
[Round "10.29"]
[White "Seemann, Jakub"]
[Black "Zakrzewski, Marek"]
[Result "1/2-1/2"]
[ECO "D02"]
[WhiteElo "1862"]
[BlackElo "2239"]
[Annotator "NA"]
[PlyCount "68"]
[EventDate "2021.12.18"]
[EventType "swiss"]
[EventCountry "POL"]
[SourceTitle "playchess.com"]
[Source "ChessBase"]
[SourceQuality "1"]
[TimeControl "900+10"]

1. d4 {[%emt 0:00:02]} d5 {[%emt 0:00:10]} 2. Nf3 {[%emt 0:00:05]} Nf6 {
[%emt 0:00:04]} 3. g3 {[%emt 0:00:05]} Bf5 {[%emt 0:00:17]} 4. c4 {[%emt 0:00:
11]} c6 {[%emt 0:00:06]} 5. Qb3 {[%emt 0:00:12]} Qb6 {[%emt 0:00:20]} 6. c5 {
[%emt 0:00:14]} Qxb3 {[%emt 0:00:20]} 7. axb3 {[%emt 0:00:02]} Nbd7 {[%emt 0:
01:48]} 8. Nc3 {[%emt 0:00:09]} a6 {[%emt 0:00:05]} 9. b4 {[%emt 0:00:04]} Rc8
{[%emt 0:00:09]} 10. Bf4 {[%emt 0:00:12]} h6 {[%emt 0:00:30]} 11. h3 {[%emt 0:
00:29]} g5 {[%emt 0:00:20]} 12. Be5 {[%emt 0:01:18]} Bg7 {[%emt 0:00:51]} 13.
g4 {[%emt 0:00:18]} Bh7 {[%emt 0:00:31]} 14. Bh2 {[%emt 0:00:44]} Ne4 {[%emt 0:
00:21]} 15. e3 {[%emt 0:00:53]} O-O {[%emt 0:00:56]} 16. Be2 {[%emt 0:06:12]}
f5 {[%emt 0:02:45]} 17. Nxe4 {[%emt 0:01:09]} fxe4 {[%emt 0:00:05]} 18. Nd2 {
[%emt 0:00:03]} e5 {[%emt 0:00:47]} 19. Nb3 {[%emt 0:00:07]} Rf7 {[%emt 0:00:
06]} 20. O-O {[%emt 0:00:24]} Re8 {[%emt 0:00:51]} 21. dxe5 {[%emt 0:00:33]}
Nxe5 {[%emt 0:00:24]} 22. Nd4 {[%emt 0:00:03]} Nf3+ {[%emt 0:00:46]} 23. Bxf3 {
[%emt 0:00:08]} exf3 {[%emt 0:00:02]} 24. Rfe1 {[%emt 0:00:47]} Be4 {[%emt 0:
00:46]} 25. Bd6 {[%emt 0:00:10]} Bf6 {[%emt 0:01:04]} 26. Kh2 {[%emt 0:00:26]}
Kg7 {[%emt 0:00:10]} 27. Kg3 {[%emt 0:01:14]} Kg6 {[%emt 0:00:00]} 28. Rh1 {
[%emt 0:00:22]} Rd8 {[%emt 0:00:46]} 29. h4 {[%emt 0:00:26]} gxh4+ {[%emt 0:00:
14]} 30. Rxh4 {[%emt 0:00:04]} Bxh4+ {[%emt 0:00:21]} 31. Kxh4 {[%emt 0:00:01]}
Kf6 {[%emt 0:01:12]} 32. Rh1 {[%emt 0:00:50]} Rg8 {[%emt 0:00:21]} 33. Kg3 {
[%emt 0:00:18]} Rg6 {[%emt 0:00:37]} 34. Rh5 {[%emt 0:00:22]} Kg7 {[%emt 0:00:
48]} 1/2-1/2

[Event "European Rapid Championship 2021"]
[Site "Katowice"]
[Date "2021.12.19"]
[Round "10.30"]
[White "Laurusas, Tomas"]
[Black "Dzhuguryan, Tygran"]
[Result "1-0"]
[ECO "E40"]
[WhiteElo "2553"]
[BlackElo "2047"]
[Annotator "ChessBase"]
[PlyCount "111"]
[EventDate "2021.12.18"]
[EventType "swiss"]
[EventCountry "POL"]
[SourceTitle "playchess.com"]
[Source "ChessBase"]
[SourceQuality "1"]
[TimeControl "900+10"]

1. d4 {[%emt 0:01:09]} Nf6 {[%emt 0:00:02]} 2. c4 {[%emt 0:00:01]} e6 {[%emt 0:
00:02]} 3. Nc3 {[%emt 0:00:36]} Bb4 {[%emt 0:00:41]} 4. e3 {[%emt 0:00:02]} d5
{[%emt 0:01:07]} 5. Bd2 {[%emt 0:00:40]} O-O {[%emt 0:00:12]} 6. Rc1 {[%emt 0:
00:39]} a6 {[%emt 0:01:46]} 7. a3 {[%emt 0:00:14]} Be7 {[%emt 0:01:02]} 8. cxd5
{[%emt 0:00:05]} exd5 {[%emt 0:00:07]} 9. Bd3 {[%emt 0:00:29]} c5 {[%emt 0:00:
16]} 10. dxc5 {[%emt 0:00:13]} Bxc5 {[%emt 0:00:01]} 11. Nce2 {[%emt 0:01:03]}
Ba7 {[%emt 0:00:42]} 12. Nf3 {[%emt 0:00:17]} Nc6 {[%emt 0:00:57]} 13. h3 {
[%emt 0:00:08]} Ne4 {[%emt 0:01:04]} 14. Bc3 {[%emt 0:00:18]} Bf5 {[%emt 0:03:
04]} 15. O-O {[%emt 0:01:56]} Nxc3 {[%emt 0:00:18]} 16. Rxc3 {[%emt 0:00:10]}
Be4 {[%emt 0:00:18]} 17. Ng3 {[%emt 0:01:47]} d4 {[%emt 0:01:11]} 18. Nxd4 {
[%emt 0:01:05]} Bxd4 {[%emt 0:02:08]} 19. exd4 {[%emt 0:00:04]} Bxd3 {[%emt 0:
00:09]} 20. Rxd3 {[%emt 0:00:02]} Qd5 {[%emt 0:00:02]} 21. Qg4 {[%emt 0:00:15]}
g6 {[%emt 0:00:14]} 22. Qf4 {[%emt 0:00:37]} Rfe8 {[%emt 0:00:28]} 23. h4 {
[%emt 0:00:16]} Rad8 {[%emt 0:00:18]} 24. h5 {[%emt 0:00:15]} Re6 {[%emt 0:00:
13]} 25. Rfd1 {[%emt 0:00:27]} Rde8 {[%emt 0:00:28]} 26. Kh2 {[%emt 0:00:37]}
Kg7 {[%emt 0:00:20]} 27. h6+ {[%emt 0:00:01]} Kg8 {[%emt 0:00:01]} 28. Re3 {
[%emt 0:01:43]} Kf8 {[%emt 0:00:33]} 29. Kg1 {[%emt 0:01:12]} f5 {[%emt 0:00:
48]} 30. Ne2 {[%emt 0:01:28]} Re4 {[%emt 0:00:34]} 31. Qg5 {[%emt 0:00:14]} Qf7
{[%emt 0:00:25]} 32. Nf4 {[%emt 0:00:44]} Nxd4 {[%emt 0:00:16]} 33. Rxe4 {
[%emt 0:00:03]} Rxe4 {[%emt 0:00:02]} 34. Qd8+ {[%emt 0:00:03]} Qe8 {[%emt 0:
00:08]} 35. Rxd4 {[%emt 0:00:27]} Qxd8 36. Rxd8+ {[%emt 0:00:17]} Ke7 {[%emt 0:
00:09]} 37. Rh8 {[%emt 0:00:17]} Rxf4 {[%emt 0:00:02]} 38. Rxh7+ {[%emt 0:00:
02]} Kf6 {[%emt 0:00:05]} 39. Rxb7 {[%emt 0:00:26]} Kg5 {[%emt 0:00:13]} 40. h7
{[%emt 0:00:49]} Rh4 {[%emt 0:00:02]} 41. g3 {[%emt 0:00:05]} Rh6 {[%emt 0:00:
08]} 42. Rc7 {[%emt 0:00:14]} a5 {[%emt 0:00:04]} 43. a4 {[%emt 0:00:01]} f4 {
[%emt 0:00:10]} 44. Kg2 {[%emt 0:00:09]} Kg4 {[%emt 0:00:21]} 45. f3+ {[%emt 0:
00:16]} Kf5 {[%emt 0:00:02]} 46. Rc5+ {[%emt 0:00:08]} Kf6 {[%emt 0:00:04]} 47.
gxf4 {[%emt 0:00:03]} Rxh7 {[%emt 0:00:02]} 48. Rxa5 {[%emt 0:00:01]} Rc7 {
[%emt 0:00:07]} 49. Rb5 {[%emt 0:00:06]} Rc4 {[%emt 0:00:08]} 50. b4 {[%emt 0:
00:09]} Rxf4 {[%emt 0:00:14]} 51. a5 {[%emt 0:00:01]} Rc4 {[%emt 0:00:02]} 52.
a6 {[%emt 0:00:02]} Rc8 {[%emt 0:00:24]} 53. a7 {[%emt 0:00:03]} Ra8 {[%emt 0:
00:02]} 54. Rb7 {[%emt 0:00:06]} Ke6 {[%emt 0:00:02]} 55. b5 {[%emt 0:00:01]}
Kd6 {[%emt 0:00:02]} 56. b6 {[%emt 0:00:01]} 1-0

[Event "European Rapid Championship 2021"]
[Site "Katowice"]
[Date "2021.12.19"]
[Round "10.30"]
[White "Szwed, Jacek"]
[Black "Malicka, Maria"]
[Result "1-0"]
[ECO "B53"]
[WhiteElo "2372"]
[BlackElo "1947"]
[Annotator "NA"]
[PlyCount "65"]
[EventDate "2021.12.18"]
[EventType "swiss"]
[EventCountry "POL"]
[SourceTitle "playchess.com"]
[Source "ChessBase"]
[SourceQuality "1"]
[TimeControl "900+10"]

1. e4 {[%emt 0:01:07]} c5 {[%emt 0:00:06]} 2. Nf3 {[%emt 0:00:02]} d6 {[%emt 0:
00:01]} 3. d4 {[%emt 0:00:01]} cxd4 {[%emt 0:00:01]} 4. Qxd4 {[%emt 0:00:01]}
Nc6 {[%emt 0:00:02]} 5. Bb5 {[%emt 0:00:01]} a6 {[%emt 0:00:01]} 6. Bxc6+ {
[%emt 0:00:38]} bxc6 {[%emt 0:00:01]} 7. O-O {[%emt 0:00:13]} e5 {[%emt 0:00:
05]} 8. Qd3 {[%emt 0:00:09]} Be7 {[%emt 0:00:03]} 9. Rd1 {[%emt 0:00:35]} Qc7 {
[%emt 0:00:02]} 10. Bg5 {[%emt 0:01:56]} Nf6 {[%emt 0:00:59]} 11. Bxf6 {
[%emt 0:00:30]} gxf6 {[%emt 0:00:02]} 12. Nh4 {[%emt 0:04:26]} Rg8 {[%emt 0:00:
25]} 13. h3 {[%emt 0:01:16]} Rb8 {[%emt 0:00:43]} 14. b3 {[%emt 0:00:13]} Be6 {
[%emt 0:00:40]} 15. c4 {[%emt 0:00:07]} Rd8 {[%emt 0:02:39]} 16. Nc3 {[%emt 0:
00:09]} Bf8 {[%emt 0:01:05]} 17. Qf3 {[%emt 0:00:57]} Ke7 {[%emt 0:00:35]} 18.
Nf5+ {[%emt 0:00:48]} Bxf5 {[%emt 0:00:02]} 19. Qxf5 {[%emt 0:00:01]} Rg6 {
[%emt 0:00:07]} 20. Rd3 {[%emt 0:00:51]} Qd7 {[%emt 0:04:00]} 21. Qf3 {[%emt 0:
01:02]} Qe6 {[%emt 0:00:02]} 22. Rad1 {[%emt 0:00:43]} Ke8 {[%emt 0:00:03]} 23.
Ne2 {[%emt 0:00:16]} Be7 {[%emt 0:01:35]} 24. Ng3 {[%emt 0:00:04]} c5 {[%emt 0:
00:27]} 25. Qh5 {[%emt 0:00:24]} h6 {[%emt 0:00:48]} 26. Nf5 {[%emt 0:00:10]}
Bf8 {[%emt 0:00:01]} 27. Qe2 {[%emt 0:00:58]} Rd7 {[%emt 0:02:14]} 28. Qd2 {
[%emt 0:00:06]} Be7 {[%emt 0:00:03]} 29. Nxh6 {[%emt 0:00:23]} Rg5 {[%emt 0:01:
04]} 30. Rf3 {[%emt 0:00:15]} f5 {[%emt 0:00:38]} 31. Nxf5 {[%emt 0:00:02]} Qg6
{[%emt 0:00:01]} 32. Rg3 {[%emt 0:00:35]} Qh5 {[%emt 0:00:12]} 33. Ng7+ {
[%emt 0:00:30]} 1-0

[Event "European Rapid Championship 2021"]
[Site "Katowice"]
[Date "2021.12.19"]
[Round "11.1"]
[White "Kindler, Przemyslaw"]
[Black "Golubovskis, Maksims"]
[Result "0-1"]
[ECO "B90"]
[WhiteElo "2032"]
[BlackElo "2210"]
[Annotator "NA"]
[PlyCount "102"]
[EventDate "2021.12.18"]
[EventType "swiss"]
[EventCountry "POL"]
[SourceTitle "playchess.com"]
[Source "ChessBase"]
[SourceQuality "1"]
[TimeControl "900+10"]

1. e4 c5 2. Nf3 d6 {[%emt 0:00:28]} 3. d4 {[%emt 0:00:06]} cxd4 {[%emt 0:00:01]
} 4. Nxd4 {[%emt 0:00:01]} Nf6 {[%emt 0:00:01]} 5. Nc3 {[%emt 0:00:02]} a6 {
[%emt 0:00:05]} 6. Bc4 {[%emt 0:00:02]} e6 {[%emt 0:00:01]} 7. Bb3 {[%emt 0:00:
01]} Be7 {[%emt 0:00:13]} 8. O-O {[%emt 0:00:04]} b5 {[%emt 0:00:01]} 9. Qf3 {
[%emt 0:00:05]} Qc7 {[%emt 0:00:00]} 10. Bg5 {[%emt 0:01:38]} O-O {[%emt 0:04:
32]} 11. Rad1 {[%emt 0:00:15]} Nbd7 {[%emt 0:01:14]} 12. Bxe6 {[%emt 0:03:18]}
Ne5 {[%emt 0:00:58]} 13. Bxf7+ {[%emt 0:00:02]} Rxf7 {[%emt 0:00:20]} 14. Qg3 {
[%emt 0:00:02]} b4 {[%emt 0:01:36]} 15. Bxf6 {[%emt 0:00:03]} bxc3 {[%emt 0:00:
16]} 16. Bxe7 {[%emt 0:00:06]} Rxe7 {[%emt 0:00:23]} 17. bxc3 {[%emt 0:00:04]}
Nc4 {[%emt 0:00:15]} 18. f4 {[%emt 0:01:12]} Rxe4 {[%emt 0:00:39]} 19. Rfe1 {
[%emt 0:00:01]} d5 {[%emt 0:00:48]} 20. Rxe4 {[%emt 0:00:31]} dxe4 {[%emt 0:00:
02]} 21. Qg5 {[%emt 0:00:02]} Qa5 {[%emt 0:02:39]} 22. Qe7 {[%emt 0:01:33]} Bg4
{[%emt 0:00:26]} 23. Qxe4 {[%emt 0:00:24]} Rd8 {[%emt 0:00:56]} 24. Rd3 {
[%emt 0:00:11]} Kh8 {[%emt 0:02:04]} 25. h3 {[%emt 0:00:31]} Bh5 {[%emt 0:00:
12]} 26. Nc6 {[%emt 0:01:25]} Qc5+ {[%emt 0:00:01]} 27. Kh2 {[%emt 0:00:03]}
Re8 {[%emt 0:00:33]} 28. Rd8 {[%emt 0:00:43]} Rxd8 {[%emt 0:00:12]} 29. Nxd8 {
[%emt 0:00:01]} Bg6 {[%emt 0:00:31]} 30. Qa8 {[%emt 0:00:57]} Qf8 {[%emt 0:00:
15]} 31. g3 {[%emt 0:02:12]} Qe8 {[%emt 0:00:10]} 32. f5 {[%emt 0:00:38]} Qe2+
{[%emt 0:00:17]} 33. Kg1 {[%emt 0:00:06]} Qe1+ {[%emt 0:00:01]} 34. Kh2 {
[%emt 0:00:01]} Qe2+ {[%emt 0:00:01]} 35. Kg1 {[%emt 0:00:03]} Be8 {[%emt 0:00:
21]} 36. Ne6 {[%emt 0:00:06]} Qe1+ {[%emt 0:00:07]} 37. Kh2 {[%emt 0:00:03]}
Qf2+ {[%emt 0:00:03]} 38. Kh1 {[%emt 0:00:10]} Qf1+ {[%emt 0:00:01]} 39. Kh2 {
[%emt 0:00:01]} Qf2+ {[%emt 0:00:00]} 40. Kh1 {[%emt 0:00:00]} Qf1+ {[%emt 0:
00:28]} 41. Kh2 {[%emt 0:00:01]} Nd6 {[%emt 0:00:00]} 42. Qd8 {[%emt 0:00:50]}
Qf2+ {[%emt 0:00:01]} 43. Kh1 {[%emt 0:00:02]} Qf1+ {[%emt 0:00:01]} 44. Kh2 {
[%emt 0:00:00]} Qf2+ {[%emt 0:00:00]} 45. Kh1 {[%emt 0:00:01]} Qxg3 {[%emt 0:
00:25]} 46. h4 {[%emt 0:01:02]} h5 {[%emt 0:00:20]} 47. Ng5 {[%emt 0:00:16]}
Qxh4+ {[%emt 0:00:07]} 48. Kg1 {[%emt 0:00:01]} Qg4+ {[%emt 0:00:06]} 49. Kh2 {
[%emt 0:00:06]} Qf4+ {[%emt 0:00:05]} 50. Kg1 {[%emt 0:00:02]} Qc1+ {[%emt 0:
00:08]} 51. Kf2 {[%emt 0:00:42]} Qxg5 0-1

[Event "European Rapid Championship 2021"]
[Site "Katowice"]
[Date "2021.12.19"]
[Round "11.2"]
[White "Pultinevicius, Paulius"]
[Black "Balog, Imre"]
[Result "1-0"]
[ECO "D11"]
[WhiteElo "2536"]
[BlackElo "2629"]
[Annotator "ChessBase"]
[PlyCount "125"]
[EventDate "2021.12.18"]
[EventType "swiss"]
[EventCountry "POL"]
[SourceTitle "playchess.com"]
[Source "ChessBase"]
[SourceQuality "1"]
[TimeControl "900+10"]

1. d4 {[%emt 0:00:02]} d5 {[%emt 0:00:01]} 2. c4 {[%emt 0:00:01]} c6 {[%emt 0:
00:01]} 3. Nf3 {[%emt 0:00:02]} Nf6 {[%emt 0:00:02]} 4. Qc2 {[%emt 0:00:06]} g6
{[%emt 0:00:19]} 5. Bf4 {[%emt 0:00:02]} dxc4 {[%emt 0:01:01]} 6. Qxc4 {
[%emt 0:00:17]} Qb6 {[%emt 0:00:01]} 7. Qc1 {[%emt 0:00:46]} Bg4 {[%emt 0:00:
13]} 8. Nbd2 {[%emt 0:00:24]} Bg7 {[%emt 0:00:35]} 9. h3 {[%emt 0:02:19]} Bxf3
{[%emt 0:00:08]} 10. Nxf3 {[%emt 0:00:01]} Nbd7 {[%emt 0:00:02]} 11. e3 {
[%emt 0:00:14]} c5 {[%emt 0:01:24]} 12. Bc4 {[%emt 0:02:54]} Qb4+ {[%emt 0:00:
36]} 13. Qc3 {[%emt 0:00:13]} Qb6 {[%emt 0:00:51]} 14. dxc5 {[%emt 0:03:28]}
Nxc5 {[%emt 0:00:04]} 15. Rc1 {[%emt 0:00:08]} Ne6 {[%emt 0:04:42]} 16. Be5 {
[%emt 0:01:26]} Ne4 {[%emt 0:00:29]} 17. Qa3 {[%emt 0:00:16]} O-O {[%emt 0:01:
27]} 18. Bxg7 {[%emt 0:00:14]} Nxg7 {[%emt 0:00:09]} 19. Qxe7 {[%emt 0:00:30]}
Qxb2 {[%emt 0:00:33]} 20. O-O {[%emt 0:00:13]} Rae8 {[%emt 0:00:07]} 21. Qh4 {
[%emt 0:00:35]} Nf5 {[%emt 0:02:07]} 22. Qf4 {[%emt 0:00:05]} Re7 {[%emt 0:00:
13]} 23. Rb1 {[%emt 0:00:46]} Qf6 {[%emt 0:00:17]} 24. Bd3 {[%emt 0:01:15]} Nc3
{[%emt 0:01:11]} 25. Rb3 {[%emt 0:00:38]} Rc8 {[%emt 0:00:05]} 26. Nd4 {
[%emt 0:01:17]} Nd5 {[%emt 0:01:00]} 27. Qg4 {[%emt 0:00:28]} h5 {[%emt 0:00:
05]} 28. Qf3 {[%emt 0:00:01]} Nxd4 {[%emt 0:00:02]} 29. Qxf6 {[%emt 0:00:01]}
Nxf6 30. exd4 {[%emt 0:00:01]} Rd8 {[%emt 0:00:01]} 31. Rb4 {[%emt 0:00:55]}
Red7 {[%emt 0:00:01]} 32. Be2 {[%emt 0:00:05]} Nd5 {[%emt 0:00:04]} 33. Rb3 {
[%emt 0:00:03]} Nf4 {[%emt 0:00:11]} 34. Bf3 {[%emt 0:00:02]} b6 {[%emt 0:00:
01]} 35. Ra3 {[%emt 0:00:19]} Ne6 {[%emt 0:00:14]} 36. Bc6 {[%emt 0:00:01]} Rc7
{[%emt 0:00:06]} 37. d5 {[%emt 0:00:01]} Nd4 {[%emt 0:00:04]} 38. Ra4 {[%emt 0:
00:27]} Ne2+ {[%emt 0:00:10]} 39. Kh2 {[%emt 0:00:02]} Nc3 {[%emt 0:00:02]} 40.
Rc4 {[%emt 0:00:14]} Nxa2 {[%emt 0:00:32]} 41. Ra1 {[%emt 0:00:12]} b5 {
[%emt 0:00:01]} 42. Bxb5 {[%emt 0:00:08]} Rxc4 {[%emt 0:00:02]} 43. Bxc4 {
[%emt 0:00:01]} Nb4 {[%emt 0:00:18]} 44. Rxa7 {[%emt 0:00:59]} Nxd5 {[%emt 0:
00:05]} 45. Kg3 {[%emt 0:00:07]} Kf8 {[%emt 0:00:03]} 46. Kh4 {[%emt 0:00:09]}
Ne7 {[%emt 0:00:02]} 47. Kg5 {[%emt 0:00:16]} Rd2 {[%emt 0:00:54]} 48. f4 {
[%emt 0:00:14]} Rxg2+ {[%emt 0:00:13]} 49. Kh6 {[%emt 0:00:02]} Nf5+ {[%emt 0:
00:01]} 50. Kh7 {[%emt 0:00:02]} Nd6 {[%emt 0:00:01]} 51. Bd5 {[%emt 0:00:22]}
Rd2 {[%emt 0:00:14]} 52. Ba2 {[%emt 0:00:07]} Rb2 {[%emt 0:00:10]} 53. Ra6 {
[%emt 0:00:17]} Ke7 {[%emt 0:00:57]} 54. Ra7+ {[%emt 0:00:10]} Kf6 {[%emt 0:00:
01]} 55. Ra6 {[%emt 0:00:05]} Rd2 {[%emt 0:00:02]} 56. Kg8 {[%emt 0:00:05]} Kf5
{[%emt 0:00:11]} 57. Ra4 {[%emt 0:00:16]} h4 58. Kg7 Rb2 {[%emt 0:00:57]} 59.
Bd5 {[%emt 0:00:15]} Rb5 {[%emt 0:00:18]} 60. Bc6 Ke6 {[%emt 0:00:17]} 61. Bxb5
{[%emt 0:00:10]} Nxb5 62. Ra6+ Nd6 {[%emt 0:00:04]} 63. Rxd6+ 1-0

[Event "European Rapid Championship 2021"]
[Site "Katowice"]
[Date "2021.12.19"]
[Round "11.2"]
[White "Walter, Szymon"]
[Black "Seemann, Jakub"]
[Result "0-1"]
[ECO "B23"]
[WhiteElo "2203"]
[BlackElo "1862"]
[Annotator "NA"]
[PlyCount "72"]
[EventDate "2021.12.18"]
[EventType "swiss"]
[EventCountry "POL"]
[SourceTitle "playchess.com"]
[Source "ChessBase"]
[SourceQuality "1"]
[TimeControl "900+10"]

1. e4 {[%emt 0:00:04]} c5 {[%emt 0:00:06]} 2. Nc3 {[%emt 0:00:06]} d6 {[%emt 0:
00:06]} 3. f4 {[%emt 0:00:05]} g6 {[%emt 0:00:05]} 4. Nf3 {[%emt 0:00:03]} Bg7
{[%emt 0:00:02]} 5. Bb5+ {[%emt 0:00:04]} Bd7 {[%emt 0:00:19]} 6. Bc4 {[%emt 0:
00:06]} Nc6 {[%emt 0:00:07]} 7. d3 {[%emt 0:00:12]} Nf6 {[%emt 0:00:03]} 8. O-O
{[%emt 0:00:07]} O-O {[%emt 0:00:09]} 9. Qe1 {[%emt 0:00:17]} Na5 {[%emt 0:00:
22]} 10. Bb3 {[%emt 0:00:12]} Nxb3 {[%emt 0:00:01]} 11. axb3 {[%emt 0:00:02]}
e6 {[%emt 0:00:33]} 12. Qh4 {[%emt 0:00:17]} Nh5 {[%emt 0:01:19]} 13. Qh3 {
[%emt 0:00:28]} f5 {[%emt 0:00:29]} 14. g4 {[%emt 0:03:46]} fxg4 {[%emt 0:01:
19]} 15. Qxg4 {[%emt 0:00:03]} Nxf4 {[%emt 0:00:18]} 16. Bxf4 {[%emt 0:02:12]}
e5 {[%emt 0:00:02]} 17. Qg5 {[%emt 0:00:39]} Rxf4 {[%emt 0:00:06]} 18. Qxd8+ {
[%emt 0:01:07]} Rxd8 {[%emt 0:00:02]} 19. Rxa7 {[%emt 0:00:18]} Bh3 {[%emt 0:
00:01]} 20. Nd5 {[%emt 0:04:56]} Rg4+ {[%emt 0:00:07]} 21. Kf2 {[%emt 0:00:04]}
Bxf1 {[%emt 0:00:04]} 22. Kxf1 {[%emt 0:00:02]} Rf8 {[%emt 0:01:08]} 23. Kf2 {
[%emt 0:00:05]} h5 {[%emt 0:01:29]} 24. h3 {[%emt 0:02:34]} Rg5 {[%emt 0:00:01]
} 25. Ne7+ {[%emt 0:01:01]} Kh8 {[%emt 0:02:09]} 26. Nf5 {[%emt 0:00:18]} Bf6 {
[%emt 0:00:27]} 27. Nxd6 {[%emt 0:00:20]} Be7 {[%emt 0:00:03]} 28. Nc4 {
[%emt 0:00:10]} h4 {[%emt 0:00:03]} 29. Rxb7 {[%emt 0:00:08]} Bd8 {[%emt 0:00:
53]} 30. Rd7 {[%emt 0:00:13]} Rg3 {[%emt 0:01:07]} 31. Ncxe5 Kg8 32. Ng4 {
[%emt 0:00:20]} Rgxf3+ {[%emt 0:00:09]} 33. Ke2 {[%emt 0:00:01]} Bg5 {[%emt 0:
00:17]} 34. Rd5 {[%emt 0:00:06]} Bc1 {[%emt 0:00:06]} 35. Rxc5 {[%emt 0:00:20]}
Rxh3 {[%emt 0:00:09]} 36. Rc7 {[%emt 0:00:11]} Rg3 {[%emt 0:00:05]} 0-1

[Event "European Rapid Championship 2021"]
[Site "Katowice"]
[Date "2021.12.19"]
[Round "11.3"]
[White "Bernadskiy, Vitaliy"]
[Black "Donchenko, Alexander"]
[Result "0-1"]
[ECO "B13"]
[WhiteElo "2616"]
[BlackElo "2535"]
[Annotator "ChessBase"]
[PlyCount "70"]
[EventDate "2021.12.18"]
[EventType "swiss"]
[EventCountry "POL"]
[SourceTitle "playchess.com"]
[Source "ChessBase"]
[SourceQuality "1"]
[TimeControl "900+10"]

1. e4 {[%emt 0:00:02]} c6 {[%emt 0:00:01]} 2. d4 {[%emt 0:00:09]} d5 {[%emt 0:
00:01]} 3. exd5 {[%emt 0:00:02]} cxd5 {[%emt 0:00:02]} 4. c4 {[%emt 0:00:01]}
Nf6 {[%emt 0:00:03]} 5. Nc3 {[%emt 0:00:02]} Nc6 {[%emt 0:00:04]} 6. Nf3 {
[%emt 0:00:06]} a6 {[%emt 0:00:05]} 7. Ne5 {[%emt 0:01:38]} e6 {[%emt 0:01:50]}
8. Be2 {[%emt 0:01:37]} Bd6 {[%emt 0:00:40]} 9. Nxc6 {[%emt 0:01:12]} bxc6 {
[%emt 0:00:02]} 10. O-O {[%emt 0:00:03]} O-O {[%emt 0:00:22]} 11. Bg5 {[%emt 0:
00:11]} a5 {[%emt 0:01:16]} 12. b3 {[%emt 0:02:12]} h6 {[%emt 0:02:06]} 13. Bh4
{[%emt 0:00:19]} Ba6 {[%emt 0:01:03]} 14. c5 {[%emt 0:01:24]} Bxe2 {[%emt 0:01:
32]} 15. Qxe2 {[%emt 0:00:05]} Bc7 {[%emt 0:00:02]} 16. f4 {[%emt 0:00:45]} Qb8
{[%emt 0:01:14]} 17. Bxf6 {[%emt 0:02:14]} gxf6 {[%emt 0:00:01]} 18. Qh5 {
[%emt 0:00:58]} Kh7 {[%emt 0:02:37]} 19. Rf3 {[%emt 0:01:30]} Qb4 {[%emt 0:03:
05]} 20. Ne2 {[%emt 0:00:23]} Qd2 {[%emt 0:00:04]} 21. Kf1 {[%emt 0:01:24]} a4
{[%emt 0:01:19]} 22. b4 {[%emt 0:00:19]} a3 {[%emt 0:00:25]} 23. b5 {[%emt 0:
01:11]} cxb5 {[%emt 0:00:08]} 24. Rb1 {[%emt 0:00:02]} Qxa2 {[%emt 0:00:15]}
25. Rbb3 {[%emt 0:00:25]} Qc2 {[%emt 0:00:16]} 26. Rxa3 {[%emt 0:00:47]} Rxa3 {
[%emt 0:00:21]} 27. Rxa3 {[%emt 0:00:02]} Bxf4 {[%emt 0:00:04]} 28. Ra7 {
[%emt 0:00:30]} Be3 {[%emt 0:00:05]} 29. Rxf7+ {[%emt 0:00:11]} Kg8 {[%emt 0:
00:00]} 30. Rxf8+ {[%emt 0:00:11]} Kxf8 {[%emt 0:00:01]} 31. g3 {[%emt 0:00:12]
} Qe4 {[%emt 0:00:25]} 32. Nf4 {[%emt 0:00:11]} Bxf4 {[%emt 0:00:10]} 33. gxf4
{[%emt 0:00:02]} Qxf4+ {[%emt 0:00:02]} 34. Ke2 {[%emt 0:00:02]} Qe4+ {[%emt 0:
00:03]} 35. Kf1 {[%emt 0:00:21]} Qf5+ {[%emt 0:00:10]} 0-1